[Event "Early-Titled-Tuesday-Blitz-January-16-2024"]
[Site "Chess.com"]
[Date "2024.01.16"]
[Round "1"]
[White "KChor05"]
[Black "Konavets"]
[Result "0-1"]
[WhiteElo "2546"]
[BlackElo "3166"]
[TimeControl "180+1"]
[EndTime "8:05:02 PST"]
[Termination "Konavets won by resignation"]

1. e4 {[%clk 0:03:00.9]} 1... c5 {[%clk 0:02:59.7]} 2. Nf3 {[%clk 0:02:58.6]}
2... d6 {[%clk 0:02:59.8]} 3. d4 {[%clk 0:02:45.4]} 3... Nf6 {[%clk 0:02:59.8]}
4. Nc3 {[%clk 0:02:44.9]} 4... cxd4 {[%clk 0:02:59.7]} 5. Nxd4 {[%clk
0:02:45.8]} 5... Bd7 {[%clk 0:02:59.5]} 6. Be2 {[%clk 0:02:43.7]} 6... g6 {[%clk
0:02:58.5]} 7. Be3 {[%clk 0:02:42]} 7... Bg7 {[%clk 0:02:58.7]} 8. Qd2 {[%clk
0:02:38.4]} 8... Nc6 {[%clk 0:02:59]} 9. O-O-O {[%clk 0:02:33.7]} 9... Rc8
{[%clk 0:02:58.9]} 10. Kb1 {[%clk 0:02:29.8]} 10... Ne5 {[%clk 0:02:55.6]} 11.
f3 {[%clk 0:02:11.5]} 11... h5 {[%clk 0:02:48.7]} 12. h4 {[%clk 0:02:10]} 12...
a6 {[%clk 0:02:47.6]} 13. Nd5 {[%clk 0:02:08.2]} 13... Nxd5 {[%clk 0:02:40.7]}
14. exd5 {[%clk 0:02:09.1]} 14... b5 {[%clk 0:02:37.1]} 15. Rdg1 {[%clk
0:02:02.8]} 15... Qc7 {[%clk 0:02:33.3]} 16. g4 {[%clk 0:01:57.1]} 16... Nc4
{[%clk 0:02:31.8]} 17. Bxc4 {[%clk 0:01:50.8]} 17... Qxc4 {[%clk 0:02:32.7]} 18.
Nb3 {[%clk 0:01:46.2]} 18... hxg4 {[%clk 0:02:32.9]} 19. fxg4 {[%clk 0:01:42.9]}
19... Bxg4 {[%clk 0:02:33.1]} 20. Bd4 {[%clk 0:01:41.6]} 20... Bxd4 {[%clk
0:02:25.5]} 21. Rxg4 {[%clk 0:01:37.3]} 21... Qxd5 {[%clk 0:02:23.8]} 22. Re1
{[%clk 0:01:25.1]} 22... Rc4 {[%clk 0:02:23.8]} 23. Nxd4 {[%clk 0:01:18.3]}
23... e5 {[%clk 0:02:19.8]} 24. Qf2 {[%clk 0:01:16.3]} 24... Kd7 {[%clk
0:02:09]} 25. Qf6 {[%clk 0:01:03.3]} 25... Re8 {[%clk 0:02:07.3]} 26. b3 {[%clk
0:00:17.9]} 26... Rxd4 {[%clk 0:02:03.2]} 27. Rxd4 {[%clk 0:00:18]} 27... exd4
{[%clk 0:02:01.8]} 28. Rd1 {[%clk 0:00:18.2]} 28... Re4 {[%clk 0:01:59.6]} 0-1

[Event "Early-Titled-Tuesday-Blitz-January-16-2024"]
[Site "Chess.com"]
[Date "2024.01.16"]
[Round "1"]
[White "NewBornNow"]
[Black "Chernyavsky_A"]
[Result "1-0"]
[WhiteElo "2778"]
[BlackElo "2412"]
[TimeControl "180+1"]
[EndTime "8:05:03 PST"]
[Termination "NewBornNow won on time"]

1. e4 {[%clk 0:02:54.3]} 1... e6 {[%clk 0:01:45.3]} 2. d4 {[%clk 0:02:50.6]}
2... d5 {[%clk 0:01:45.8]} 3. exd5 {[%clk 0:02:50.2]} 3... exd5 {[%clk
0:01:46.7]} 4. Nf3 {[%clk 0:02:50.1]} 4... Bd6 {[%clk 0:01:44.6]} 5. c4 {[%clk
0:02:49.1]} 5... Nf6 {[%clk 0:01:44.2]} 6. c5 {[%clk 0:02:44.7]} 6... Be7 {[%clk
0:01:44.2]} 7. Nc3 {[%clk 0:02:44.6]} 7... b6 {[%clk 0:01:42.5]} 8. Be3 {[%clk
0:02:44.3]} 8... Ng4 {[%clk 0:01:24]} 9. Bf4 {[%clk 0:02:41.6]} 9... bxc5 {[%clk
0:01:18.8]} 10. Qa4+ {[%clk 0:02:10.7]} 10... Bd7 {[%clk 0:01:00.4]} 11. Bb5
{[%clk 0:02:06.8]} 11... c6 {[%clk 0:00:54.6]} 12. Be2 {[%clk 0:02:05.3]} 12...
cxd4 {[%clk 0:00:43.6]} 13. Nxd4 {[%clk 0:02:03.9]} 13... O-O {[%clk 0:00:33.6]}
14. Bxg4 {[%clk 0:02:02.9]} 14... Bxg4 {[%clk 0:00:31.9]} 15. Bxb8 {[%clk
0:02:01.3]} 15... Qxb8 {[%clk 0:00:29.7]} 16. Nxc6 {[%clk 0:02:01]} 16... Qxb2
{[%clk 0:00:14.6]} 17. Nxe7+ {[%clk 0:01:58.7]} 17... Kh8 {[%clk 0:00:15.3]} 18.
O-O {[%clk 0:01:57.5]} 18... Qxc3 {[%clk 0:00:15.7]} 19. Qxg4 {[%clk 0:01:56.7]}
1-0

[Event "Early-Titled-Tuesday-Blitz-January-16-2024"]
[Site "Chess.com"]
[Date "2024.01.16"]
[Round "1"]
[White "SaqoChess_Twitch"]
[Black "FranciscodelaF"]
[Result "1-0"]
[WhiteElo "2606"]
[BlackElo "2239"]
[TimeControl "180+1"]
[EndTime "8:05:03 PST"]
[Termination "SaqoChess_Twitch won by resignation"]

1. d4 {[%clk 0:02:52.3]} 1... d5 {[%clk 0:02:59.2]} 2. c4 {[%clk 0:02:51.9]}
2... c6 {[%clk 0:02:59]} 3. Nc3 {[%clk 0:02:51.8]} 3... Nf6 {[%clk 0:02:58.4]}
4. e3 {[%clk 0:02:51]} 4... Bf5 {[%clk 0:02:48.1]} 5. cxd5 {[%clk 0:02:50.8]}
5... cxd5 {[%clk 0:02:47.5]} 6. Qb3 {[%clk 0:02:51.1]} 6... Qb6 {[%clk 0:02:40]}
7. Nxd5 {[%clk 0:02:46.5]} 7... Qxb3 {[%clk 0:02:20.1]} 8. Nxf6+ {[%clk
0:02:46.2]} 8... exf6 {[%clk 0:02:13.3]} 9. axb3 {[%clk 0:02:47.1]} 9... Bb4+
{[%clk 0:02:00.6]} 10. Bd2 {[%clk 0:02:46.8]} 10... Nc6 {[%clk 0:01:56.4]} 11.
Bb5 {[%clk 0:02:46.5]} 11... Bxd2+ {[%clk 0:01:44.2]} 12. Kxd2 {[%clk
0:02:47.4]} 12... Kd7 {[%clk 0:01:38.3]} 13. Ne2 {[%clk 0:02:46.8]} 13... a6
{[%clk 0:01:37.5]} 14. Bd3 {[%clk 0:02:36.7]} 14... Be6 {[%clk 0:01:27.6]} 15.
Bc4 {[%clk 0:02:33.7]} 15... Bf5 {[%clk 0:01:12.8]} 16. f3 {[%clk 0:02:19.7]}
16... Kd6 {[%clk 0:00:59.8]} 17. e4 {[%clk 0:02:17]} 17... Bg6 {[%clk
0:00:56.3]} 18. Rhc1 {[%clk 0:02:16.7]} 18... Rhd8 {[%clk 0:00:51]} 19. Ke3
{[%clk 0:02:16.7]} 19... Ke7 {[%clk 0:00:38.7]} 20. Bd5 {[%clk 0:02:13.3]} 20...
Rd6 {[%clk 0:00:26.1]} 21. Bxc6 {[%clk 0:02:13.3]} 21... Rxc6 {[%clk 0:00:19.2]}
22. Rxc6 {[%clk 0:02:09.7]} 22... bxc6 {[%clk 0:00:19.4]} 23. Ra3 {[%clk
0:02:09.5]} 23... Kd7 {[%clk 0:00:19.4]} 24. Nf4 {[%clk 0:02:09.1]} 24... Ke7
{[%clk 0:00:17.5]} 25. Nd3 {[%clk 0:02:09.1]} 25... h6 {[%clk 0:00:15.7]} 26.
Nc5 {[%clk 0:02:09.7]} 26... a5 {[%clk 0:00:13.6]} 27. Nb7 {[%clk 0:02:09.9]}
27... h5 {[%clk 0:00:11.1]} 28. Nxa5 {[%clk 0:02:10]} 28... Kd6 {[%clk
0:00:08.6]} 29. Nc4+ {[%clk 0:02:09.7]} 1-0

[Event "Early-Titled-Tuesday-Blitz-January-16-2024"]
[Site "Chess.com"]
[Date "2024.01.16"]
[Round "1"]
[White "j2806"]
[Black "Kostya0705"]
[Result "0-1"]
[WhiteElo "2072"]
[BlackElo "2562"]
[TimeControl "180+1"]
[EndTime "8:05:06 PST"]
[Termination "Kostya0705 won by resignation"]

1. e4 {[%clk 0:03:00.9]} 1... c5 {[%clk 0:02:59.3]} 2. Nf3 {[%clk 0:02:59.9]}
2... e6 {[%clk 0:02:59.9]} 3. d4 {[%clk 0:02:55.8]} 3... cxd4 {[%clk 0:03:00.8]}
4. Nxd4 {[%clk 0:02:56]} 4... Nc6 {[%clk 0:03:01.2]} 5. Nc3 {[%clk 0:02:46.4]}
5... Qc7 {[%clk 0:03:01.3]} 6. Nb3 {[%clk 0:02:29.4]} 6... a6 {[%clk 0:03:01]}
7. Be3 {[%clk 0:02:28.6]} 7... b5 {[%clk 0:03:01.2]} 8. Bd3 {[%clk 0:02:23.5]}
8... Bb7 {[%clk 0:03:01.6]} 9. O-O {[%clk 0:02:22.5]} 9... Nf6 {[%clk
0:03:02.1]} 10. Qe1 {[%clk 0:02:15]} 10... Be7 {[%clk 0:03:01.8]} 11. f4 {[%clk
0:02:08.7]} 11... d6 {[%clk 0:03:00.6]} 12. Qg3 {[%clk 0:02:04.3]} 12... O-O
{[%clk 0:03:00.7]} 13. Rae1 {[%clk 0:01:56.1]} 13... b4 {[%clk 0:02:47.4]} 14.
Nd1 {[%clk 0:01:51.1]} 14... a5 {[%clk 0:02:43.1]} 15. Nf2 {[%clk 0:01:44]}
15... a4 {[%clk 0:02:39.4]} 16. Nd4 {[%clk 0:01:43.8]} 16... Ra5 {[%clk
0:02:33.5]} 17. Ng4 {[%clk 0:01:34.5]} 17... Nxg4 {[%clk 0:02:28.9]} 18. Qxg4
{[%clk 0:01:33.2]} 18... Nxd4 {[%clk 0:02:28.6]} 19. Bxd4 {[%clk 0:01:32.4]}
19... e5 {[%clk 0:02:29.5]} 20. fxe5 {[%clk 0:01:22.2]} 20... dxe5 {[%clk
0:02:30.4]} 21. Be3 {[%clk 0:01:21.5]} 21... Bc5 {[%clk 0:02:19.5]} 22. Rf3
{[%clk 0:01:12.7]} 22... g6 {[%clk 0:02:17.4]} 23. Kh1 {[%clk 0:00:54.5]} 23...
Bxe3 {[%clk 0:02:16.3]} 24. Rexe3 {[%clk 0:00:39.5]} 24... b3 {[%clk 0:02:11.8]}
25. axb3 {[%clk 0:00:29.3]} 25... axb3 {[%clk 0:02:11.6]} 26. c3 {[%clk
0:00:25.5]} 26... Ra1+ {[%clk 0:02:06.8]} 27. Rf1 {[%clk 0:00:23.7]} 27... Ra2
{[%clk 0:02:07.1]} 28. Re2 {[%clk 0:00:15.2]} 28... Rd8 {[%clk 0:02:03.3]} 29.
Rf3 {[%clk 0:00:13]} 29... Ra1+ {[%clk 0:02:02.1]} 0-1

[Event "Early-Titled-Tuesday-Blitz-January-16-2024"]
[Site "Chess.com"]
[Date "2024.01.16"]
[Round "1"]
[White "Perecke"]
[Black "DraningWaterHi"]
[Result "1-0"]
[WhiteElo "2575"]
[BlackElo "2135"]
[TimeControl "180+1"]
[EndTime "8:05:11 PST"]
[Termination "Perecke won by resignation"]

1. e4 {[%clk 0:03:00.9]} 1... e5 {[%clk 0:02:55.5]} 2. Nf3 {[%clk 0:03:00.9]}
2... Nc6 {[%clk 0:02:55.1]} 3. Bb5 {[%clk 0:03:00.6]} 3... a6 {[%clk 0:02:50.1]}
4. Ba4 {[%clk 0:03:00.7]} 4... Nf6 {[%clk 0:02:50.2]} 5. O-O {[%clk 0:02:59.1]}
5... Be7 {[%clk 0:02:50.2]} 6. Re1 {[%clk 0:02:59.3]} 6... b5 {[%clk 0:02:50]}
7. Bb3 {[%clk 0:02:59.9]} 7... O-O {[%clk 0:02:49.1]} 8. a4 {[%clk 0:02:57.7]}
8... b4 {[%clk 0:02:48.4]} 9. d3 {[%clk 0:02:56.5]} 9... Bb7 {[%clk 0:02:40.3]}
10. Nbd2 {[%clk 0:02:54.5]} 10... Re8 {[%clk 0:02:38.3]} 11. Nc4 {[%clk
0:02:53.6]} 11... Bf8 {[%clk 0:02:37.5]} 12. a5 {[%clk 0:02:52.7]} 12... d6
{[%clk 0:02:28.7]} 13. c3 {[%clk 0:02:46.9]} 13... bxc3 {[%clk 0:02:21.7]} 14.
bxc3 {[%clk 0:02:46.9]} 14... g6 {[%clk 0:02:22.1]} 15. Bg5 {[%clk 0:02:43.2]}
15... h6 {[%clk 0:02:16.4]} 16. Bd2 {[%clk 0:02:39.4]} 16... Bg7 {[%clk
0:02:16.5]} 17. Rb1 {[%clk 0:02:31.5]} 17... Rb8 {[%clk 0:02:13.6]} 18. Ne3
{[%clk 0:02:25]} 18... Nd7 {[%clk 0:02:10.5]} 19. Qc2 {[%clk 0:02:15.2]} 19...
Nxa5 {[%clk 0:01:51.1]} 20. Bxf7+ {[%clk 0:02:13.4]} 20... Kxf7 {[%clk
0:01:43.1]} 21. Qa2+ {[%clk 0:02:14.3]} 21... Kf8 {[%clk 0:01:35.6]} 22. Qxa5
{[%clk 0:02:08.8]} 22... Kg8 {[%clk 0:01:34.6]} 23. Rxb7 {[%clk 0:01:59.9]}
23... Rxb7 {[%clk 0:01:32.8]} 24. Qd5+ {[%clk 0:02:00]} 24... Kh7 {[%clk
0:01:32.1]} 25. Qxb7 {[%clk 0:02:00.9]} 25... Nc5 {[%clk 0:01:31.9]} 26. Qd5
{[%clk 0:01:59.9]} 26... c6 {[%clk 0:01:30.5]} 27. Qc4 {[%clk 0:01:58.6]} 27...
Qd7 {[%clk 0:01:22.7]} 28. Bc1 {[%clk 0:01:53.3]} 28... Qb7 {[%clk 0:01:19.6]}
29. Ba3 {[%clk 0:01:50.6]} 29... Ne6 {[%clk 0:01:06.5]} 30. Bxd6 {[%clk
0:01:47.7]} 30... Nf4 {[%clk 0:01:07]} 31. g3 {[%clk 0:01:46.5]} 31... Ne6
{[%clk 0:01:06.2]} 32. Bxe5 {[%clk 0:01:45.5]} 32... Bxe5 {[%clk 0:01:06.1]} 33.
Nxe5 {[%clk 0:01:46.4]} 33... Ng5 {[%clk 0:01:05.7]} 34. N3g4 {[%clk 0:01:40.3]}
34... Qb2 {[%clk 0:01:03.1]} 35. Nf6+ {[%clk 0:01:29.7]} 35... Kh8 {[%clk
0:01:01.8]} 36. Nf7+ {[%clk 0:01:18.4]} 1-0

[Event "Early-Titled-Tuesday-Blitz-January-16-2024"]
[Site "Chess.com"]
[Date "2024.01.16"]
[Round "1"]
[White "Durarbayli"]
[Black "Schachmalanders"]
[Result "1-0"]
[WhiteElo "2834"]
[BlackElo "2453"]
[TimeControl "180+1"]
[EndTime "8:05:13 PST"]
[Termination "Durarbayli won by resignation"]

1. c4 {[%clk 0:02:59.6]} 1... c5 {[%clk 0:02:58]} 2. Nc3 {[%clk 0:02:58.7]} 2...
Nc6 {[%clk 0:02:57.2]} 3. Nf3 {[%clk 0:02:58.9]} 3... e5 {[%clk 0:02:55.3]} 4.
g3 {[%clk 0:02:57.6]} 4... g6 {[%clk 0:02:55.6]} 5. Bg2 {[%clk 0:02:58]} 5...
Bg7 {[%clk 0:02:56.2]} 6. O-O {[%clk 0:02:58.6]} 6... Nge7 {[%clk 0:02:56.7]} 7.
a3 {[%clk 0:02:58.6]} 7... O-O {[%clk 0:02:56.6]} 8. b4 {[%clk 0:02:57.6]} 8...
cxb4 {[%clk 0:02:56.8]} 9. axb4 {[%clk 0:02:58.5]} 9... Nxb4 {[%clk 0:02:55.8]}
10. Ba3 {[%clk 0:02:58.3]} 10... Nbc6 {[%clk 0:02:53.7]} 11. Bd6 {[%clk
0:02:57.4]} 11... f5 {[%clk 0:02:37.6]} 12. e4 {[%clk 0:02:13.8]} 12... Qe8
{[%clk 0:02:27.1]} 13. Nb5 {[%clk 0:02:01.3]} 13... fxe4 {[%clk 0:02:23.8]} 14.
Ng5 {[%clk 0:02:00.8]} 14... Nd4 {[%clk 0:02:16.8]} 15. Nc7 {[%clk 0:01:57.6]}
15... Qd8 {[%clk 0:02:15.1]} 16. Nxa8 {[%clk 0:01:37.7]} 16... Ndf5 {[%clk
0:01:57.3]} 17. Nxe4 {[%clk 0:01:32.7]} 17... Nxd6 {[%clk 0:01:55]} 18. Nxd6
{[%clk 0:01:33.6]} 18... Nc6 {[%clk 0:01:45.1]} 19. c5 {[%clk 0:01:17.6]} 19...
e4 {[%clk 0:01:07]} 20. Qb3+ {[%clk 0:01:16.3]} 20... Kh8 {[%clk 0:01:06.9]} 21.
Nf7+ {[%clk 0:01:13.4]} 21... Rxf7 {[%clk 0:01:07.5]} 22. Qxf7 {[%clk
0:01:13.8]} 22... Ne5 {[%clk 0:01:03]} 23. Qd5 {[%clk 0:01:10.1]} 23... Nf3+
{[%clk 0:01:02.4]} 24. Bxf3 {[%clk 0:01:10]} 24... exf3 {[%clk 0:01:03]} 25.
Rxa7 {[%clk 0:01:05.7]} 25... Qf6 {[%clk 0:00:58]} 26. Nb6 {[%clk 0:01:03.2]}
1-0

[Event "Early-Titled-Tuesday-Blitz-January-16-2024"]
[Site "Chess.com"]
[Date "2024.01.16"]
[Round "1"]
[White "RandomNoob04"]
[Black "KnightmareJoker"]
[Result "1-0"]
[WhiteElo "2567"]
[BlackElo "2086"]
[TimeControl "180+1"]
[EndTime "8:05:19 PST"]
[Termination "RandomNoob04 won by resignation"]

1. e4 {[%clk 0:03:00.9]} 1... e5 {[%clk 0:02:59.1]} 2. d4 {[%clk 0:03:01.3]}
2... exd4 {[%clk 0:02:59.2]} 3. Qxd4 {[%clk 0:03:02.2]} 3... Nc6 {[%clk
0:02:59.3]} 4. Qe3 {[%clk 0:03:02.8]} 4... Nf6 {[%clk 0:02:55.9]} 5. e5 {[%clk
0:03:03.2]} 5... Nd5 {[%clk 0:02:49.3]} 6. Qe4 {[%clk 0:03:04.1]} 6... Nb6
{[%clk 0:02:48.8]} 7. Nf3 {[%clk 0:03:04.8]} 7... Bc5 {[%clk 0:02:48.3]} 8. Nc3
{[%clk 0:02:53.8]} 8... h6 {[%clk 0:02:45.8]} 9. Bd3 {[%clk 0:02:50.6]} 9... Qe7
{[%clk 0:02:43.8]} 10. Bf4 {[%clk 0:02:49.6]} 10... d6 {[%clk 0:02:38.2]} 11.
exd6 {[%clk 0:02:43.5]} 11... cxd6 {[%clk 0:02:29.8]} 12. Nb5 {[%clk 0:02:24.9]}
12... Qxe4+ {[%clk 0:02:26]} 13. Bxe4 {[%clk 0:02:24.9]} 13... O-O {[%clk
0:02:23]} 14. Bxd6 {[%clk 0:02:21.3]} 14... Bxd6 {[%clk 0:02:00.1]} 15. Nxd6
{[%clk 0:02:22.2]} 15... Rd8 {[%clk 0:01:54.3]} 16. O-O-O {[%clk 0:02:20.9]}
16... Rb8 {[%clk 0:01:40.8]} 17. Bxc6 {[%clk 0:02:14.6]} 17... bxc6 {[%clk
0:01:38.6]} 18. Ne5 {[%clk 0:02:15.3]} 18... Bb7 {[%clk 0:00:57.9]} 19. Nxb7
{[%clk 0:02:04.1]} 19... Rxd1+ {[%clk 0:00:57.9]} 20. Rxd1 {[%clk 0:02:03.6]}
20... Rxb7 {[%clk 0:00:58.8]} 21. Nxc6 {[%clk 0:02:03.7]} 21... Nc4 {[%clk
0:00:56.6]} 22. b3 {[%clk 0:02:01.6]} 22... Nb6 {[%clk 0:00:56.9]} 23. c4 {[%clk
0:02:00.3]} 23... Kh7 {[%clk 0:00:55.5]} 24. Nd4 {[%clk 0:01:44.2]} 24... a5
{[%clk 0:00:53.5]} 25. a4 {[%clk 0:01:40]} 25... Nd7 {[%clk 0:00:51.8]} 26. Kc2
{[%clk 0:01:39.4]} 26... Nc5 {[%clk 0:00:51.5]} 27. Nb5 {[%clk 0:01:38]} 27...
Re7 {[%clk 0:00:49.7]} 28. Rd5 {[%clk 0:01:26.7]} 28... Re2+ {[%clk 0:00:44.7]}
29. Kd1 {[%clk 0:01:25.4]} 29... Rd2+ {[%clk 0:00:41.1]} 30. Rxd2 {[%clk
0:01:24]} 1-0

[Event "Early-Titled-Tuesday-Blitz-January-16-2024"]
[Site "Chess.com"]
[Date "2024.01.16"]
[Round "1"]
[White "MasterofMasters2006"]
[Black "AldokhinIvan"]
[Result "0-1"]
[WhiteElo "2222"]
[BlackElo "2599"]
[TimeControl "180+1"]
[EndTime "8:05:21 PST"]
[Termination "AldokhinIvan won by resignation"]

1. d4 {[%clk 0:02:52.7]} 1... Nf6 {[%clk 0:02:59.4]} 2. c4 {[%clk 0:02:52]} 2...
e6 {[%clk 0:02:57.5]} 3. Nf3 {[%clk 0:02:51.8]} 3... c5 {[%clk 0:02:56.4]} 4. d5
{[%clk 0:02:51.5]} 4... exd5 {[%clk 0:02:56.6]} 5. cxd5 {[%clk 0:02:52.4]} 5...
d6 {[%clk 0:02:57.1]} 6. Nc3 {[%clk 0:02:52]} 6... g6 {[%clk 0:02:57.4]} 7. Bf4
{[%clk 0:02:52.1]} 7... a6 {[%clk 0:02:49.3]} 8. a4 {[%clk 0:02:50.9]} 8... Bg7
{[%clk 0:02:45.2]} 9. e3 {[%clk 0:02:50.5]} 9... Bg4 {[%clk 0:02:41.3]} 10. h3
{[%clk 0:02:50.2]} 10... Bxf3 {[%clk 0:02:40.9]} 11. Qxf3 {[%clk 0:02:51.1]}
11... O-O {[%clk 0:02:39.5]} 12. Be2 {[%clk 0:02:49.5]} 12... Qe7 {[%clk
0:02:36.4]} 13. O-O {[%clk 0:02:48.8]} 13... Nbd7 {[%clk 0:02:33.4]} 14. Rfd1
{[%clk 0:02:42.7]} 14... Nh5 {[%clk 0:02:27.6]} 15. Bh2 {[%clk 0:02:42.4]} 15...
Ne5 {[%clk 0:02:17.9]} 16. Qe4 {[%clk 0:02:39.6]} 16... f5 {[%clk 0:02:14.7]}
17. Qc2 {[%clk 0:02:38.6]} 17... Nf6 {[%clk 0:02:06.5]} 18. Rac1 {[%clk
0:02:29.5]} 18... Rae8 {[%clk 0:02:04.1]} 19. a5 {[%clk 0:02:22.8]} 19... Nfd7
{[%clk 0:01:48.4]} 20. Na4 {[%clk 0:02:10.2]} 20... g5 {[%clk 0:01:45.1]} 21.
Bxe5 {[%clk 0:02:07.2]} 21... Nxe5 {[%clk 0:01:39.4]} 22. Nb6 {[%clk 0:02:04.5]}
22... g4 {[%clk 0:01:26]} 23. hxg4 {[%clk 0:01:54.9]} 23... fxg4 {[%clk
0:01:23.6]} 24. Qa4 {[%clk 0:01:48.2]} 24... Qh4 {[%clk 0:01:04.6]} 25. g3
{[%clk 0:01:44.1]} 25... Qh3 {[%clk 0:01:01.6]} 26. Qe4 {[%clk 0:01:17.9]} 26...
Nf3+ {[%clk 0:00:56.3]} 27. Bxf3 {[%clk 0:01:18.2]} 27... gxf3 {[%clk
0:00:56.4]} 0-1

[Event "Early-Titled-Tuesday-Blitz-January-16-2024"]
[Site "Chess.com"]
[Date "2024.01.16"]
[Round "1"]
[White "LoScecco"]
[Black "Mikayel99"]
[Result "0-1"]
[WhiteElo "2176"]
[BlackElo "2582"]
[TimeControl "180+1"]
[EndTime "8:05:21 PST"]
[Termination "Mikayel99 won by resignation"]

1. c4 {[%clk 0:03:00.9]} 1... c6 {[%clk 0:02:55.3]} 2. Nf3 {[%clk 0:02:58.8]}
2... d5 {[%clk 0:02:54.5]} 3. e3 {[%clk 0:02:58.8]} 3... Nf6 {[%clk 0:02:54.5]}
4. b3 {[%clk 0:02:57.4]} 4... g6 {[%clk 0:02:54.4]} 5. Bb2 {[%clk 0:02:57.4]}
5... Bg7 {[%clk 0:02:54.9]} 6. d4 {[%clk 0:02:56.4]} 6... O-O {[%clk 0:02:53.7]}
7. Nbd2 {[%clk 0:02:56.5]} 7... Bg4 {[%clk 0:02:50.3]} 8. Be2 {[%clk 0:02:56.3]}
8... Nbd7 {[%clk 0:02:48.4]} 9. O-O {[%clk 0:02:56]} 9... Re8 {[%clk 0:02:47.9]}
10. h3 {[%clk 0:02:55.8]} 10... Bxf3 {[%clk 0:02:45.2]} 11. Nxf3 {[%clk
0:02:53.4]} 11... Ne4 {[%clk 0:02:43.1]} 12. Qc2 {[%clk 0:02:52.4]} 12... Rc8
{[%clk 0:02:40.8]} 13. Bd3 {[%clk 0:02:50]} 13... Nef6 {[%clk 0:02:34.1]} 14.
Rfd1 {[%clk 0:02:42.1]} 14... e6 {[%clk 0:02:32.5]} 15. Ne5 {[%clk 0:02:38.1]}
15... Nxe5 {[%clk 0:02:30.9]} 16. dxe5 {[%clk 0:02:38.3]} 16... Nd7 {[%clk
0:02:31.8]} 17. f4 {[%clk 0:02:33.6]} 17... Qb6 {[%clk 0:02:30.9]} 18. Qf2
{[%clk 0:02:23.1]} 18... Nc5 {[%clk 0:02:24.8]} 19. Bd4 {[%clk 0:02:10.8]} 19...
Nxd3 {[%clk 0:02:21.3]} 20. Rxd3 {[%clk 0:02:06.1]} 20... c5 {[%clk 0:02:20.9]}
21. Bb2 {[%clk 0:02:05.1]} 21... dxc4 {[%clk 0:02:13.2]} 22. Rc3 {[%clk
0:02:05]} 22... cxb3 {[%clk 0:02:10.2]} 23. Rxb3 {[%clk 0:02:05.1]} 23... Qc6
{[%clk 0:02:10.2]} 24. Rc1 {[%clk 0:02:03.1]} 24... b6 {[%clk 0:02:10.1]} 25.
Qf1 {[%clk 0:01:50.4]} 25... Red8 {[%clk 0:02:08.3]} 26. Bc3 {[%clk 0:01:47.6]}
26... Qe4 {[%clk 0:02:05.4]} 27. Be1 {[%clk 0:01:41.3]} 27... c4 {[%clk
0:01:59.7]} 28. Rb4 {[%clk 0:01:37.5]} 28... Qxe3+ {[%clk 0:01:56.8]} 29. Bf2
{[%clk 0:01:32.2]} 29... Qxf4 {[%clk 0:01:56.9]} 30. Rbxc4 {[%clk 0:01:31.5]}
30... Rxc4 {[%clk 0:01:55]} 31. Rxc4 {[%clk 0:01:27.7]} 31... Qxe5 {[%clk
0:01:55.4]} 32. Ra4 {[%clk 0:01:18.1]} 32... Qh5 {[%clk 0:01:50.3]} 33. Qa6
{[%clk 0:01:07.4]} 33... Qd1+ {[%clk 0:01:43.6]} 34. Kh2 {[%clk 0:01:06.1]}
34... Be5+ {[%clk 0:01:43.7]} 35. Bg3 {[%clk 0:01:02.9]} 35... Bxg3+ {[%clk
0:01:41.8]} 36. Kxg3 {[%clk 0:01:03.1]} 36... Qd6+ {[%clk 0:01:40.8]} 37. Kf3
{[%clk 0:01:00.4]} 37... Qd3+ {[%clk 0:01:34.6]} 38. Qxd3 {[%clk 0:00:59.1]}
38... Rxd3+ {[%clk 0:01:35.5]} 39. Ke2 {[%clk 0:00:59.2]} 39... Rd7 {[%clk
0:01:35.2]} 0-1

[Event "Early-Titled-Tuesday-Blitz-January-16-2024"]
[Site "Chess.com"]
[Date "2024.01.16"]
[Round "1"]
[White "rikchessmx"]
[Black "iwanyu"]
[Result "0-1"]
[WhiteElo "2315"]
[BlackElo "2655"]
[TimeControl "180+1"]
[EndTime "8:05:26 PST"]
[Termination "iwanyu won by resignation"]

1. e4 {[%clk 0:02:53.6]} 1... c6 {[%clk 0:02:59.7]} 2. d4 {[%clk 0:02:53.3]}
2... d5 {[%clk 0:03:00.6]} 3. Nc3 {[%clk 0:02:53.1]} 3... dxe4 {[%clk
0:03:00.7]} 4. Nxe4 {[%clk 0:02:54]} 4... Nf6 {[%clk 0:03:01.2]} 5. Ng5 {[%clk
0:02:53.6]} 5... c5 {[%clk 0:02:50.2]} 6. N1f3 {[%clk 0:02:53]} 6... h6 {[%clk
0:02:50.3]} 7. Nxf7 {[%clk 0:02:50.9]} 7... Kxf7 {[%clk 0:02:51.2]} 8. Ne5+
{[%clk 0:02:51.1]} 8... Kg8 {[%clk 0:02:49.6]} 9. Bc4+ {[%clk 0:02:50]} 9... e6
{[%clk 0:02:49.8]} 10. Ng6 {[%clk 0:02:45]} 10... Rh7 {[%clk 0:02:46.6]} 11. Bd3
{[%clk 0:02:44.6]} 11... cxd4 {[%clk 0:02:40.8]} 12. O-O {[%clk 0:02:36.3]}
12... Nc6 {[%clk 0:02:39.8]} 13. Qe2 {[%clk 0:02:33.4]} 13... Bd6 {[%clk
0:02:22.1]} 14. f4 {[%clk 0:02:28]} 14... Qe8 {[%clk 0:01:07.2]} 15. a3 {[%clk
0:02:25.1]} 15... Bd7 {[%clk 0:00:54.4]} 16. Bd2 {[%clk 0:02:25]} 16... Ne7
{[%clk 0:00:49.8]} 17. Nxe7+ {[%clk 0:02:22.1]} 17... Qxe7 {[%clk 0:00:49]} 18.
Bxh7+ {[%clk 0:02:21.6]} 18... Kxh7 {[%clk 0:00:49.9]} 19. Rae1 {[%clk
0:02:20.2]} 19... Rc8 {[%clk 0:00:49]} 20. Qd3+ {[%clk 0:02:20.4]} 20... Kg8
{[%clk 0:00:49.1]} 21. Rc1 {[%clk 0:02:15.8]} 21... Qe8 {[%clk 0:00:47.8]} 22.
Rfe1 {[%clk 0:02:08.5]} 22... Bc6 {[%clk 0:00:45.2]} 23. Kh1 {[%clk 0:02:06.3]}
23... Qh5 {[%clk 0:00:38.2]} 24. Rxe6 {[%clk 0:01:56.4]} 24... Qd5 {[%clk
0:00:27.7]} 25. Qe2 {[%clk 0:01:45.2]} 25... Ne4 {[%clk 0:00:27.2]} 26. Rg6
{[%clk 0:01:36.7]} 26... Qf5 {[%clk 0:00:27.1]} 27. Rg4 {[%clk 0:01:32.8]} 27...
Qxg4 {[%clk 0:00:27.3]} 28. Qc4+ {[%clk 0:01:28.8]} 28... Kh8 {[%clk 0:00:26.3]}
29. h3 {[%clk 0:01:28]} 29... Nf2+ {[%clk 0:00:24.3]} 0-1